bitfinex/quotes_ETHUSD_20240902
["timestamp","ask_amount","ask_price","bid_price","bid_amount"]
[1725253582298,6.29050401,2445.7,2445.3,0.29407781]
[1725253582501,6.29050401,2445.7,2445.2,2.85899487]
[1725253583682,9.15274401,2445.7,2445.2,2.85899487]
[1725253583913,9.15273401,2445.7,2445.2,2.85899487]
[1725253585228,6.29050401,2445.7,2445.2,2.85899487]
[1725253585434,0.42827401,2445.7,2445.4,2.3108]
[1725253585646,2.86176,2446.1,2445.6,2.3108]
[1725253585934,2.86184,2446.0,2445.6,2.3108]
[1725253586287,3.29003982,2446.1,2445.6,2.81761859]
[1725253586487,0.42827982,2446.1,2445.7,2.361]
[1725253588430,0.10641456,2446.0,2445.9,2.366]
[1725253588756,3.28955677,2446.5,2445.9,2.366]
[1725253589033,0.42828677,2446.5,2446.1,2.366]
[1725253590433,2.86104,2446.7,2446.2,0.08175403]
[1725253590741,3.28918136,2446.8,2446.3,2.366]
[1725253591032,0.42829136,2446.8,2446.3,2.366]
[1725253591230,0.42829136,2446.8,2446.3,2.44774638]
[1725253592520,0.42829136,2446.8,2446.4,0.55]
[1725253592691,0.42829136,2446.8,2446.5,2.636243]
[1725253592891,0.42829136,2446.8,2446.6,0.08173757]
[1725253593241,2.86057,2447.1,2446.7,2.2951]
[1725253593754,2.86043,2447.2,2446.7,2.2951]
[1725253594488,5.86054,2447.1,2446.7,2.2951]
[1725253594890,8.72115,2447.1,2446.7,2.2951]
[1725253595091,2.86087,2446.8,2446.7,2.2951]
[1725253595339,0.572167,2446.8,2446.3,2.2951]
[1725253595507,2.86108,2446.7,2446.3,2.2951]
[1725253595955,2.86107,2446.7,2446.3,2.2951]
[1725253596623,0.10842066,2446.6,2446.3,2.2951]
[1725253597390,0.10842066,2446.6,2446.3,2.52461]
[1725253599534,5.86089,2446.8,2446.3,2.52461]
[1725253599695,0.10821044,2446.5,2446.3,2.52461]
[1725253600026,0.10816243,2446.4,2446.3,2.52461]
[1725253600229,3.0,2446.8,2446.3,2.2951]
[1725253600540,0.10814046,2446.4,2446.3,2.2951]
[1725253600849,3.0,2446.8,2446.3,2.2951]
[1725253601130,0.10814046,2446.4,2446.3,2.2951]
[1725253601325,3.0,2446.8,2446.4,2.2786]
[1725253601824,2.86058,2447.1,2446.6,2.2746]
[1725253601990,3.0,2447.0,2446.8,2.2746]
[1725253602195,2.86042,2447.2,2446.8,2.2746]
[1725253603535,3.0,2447.1,2446.8,2.2746]
[1725253610531,3.0,2447.2,2446.8,2.2746]
[1725253610933,3.0,2447.2,2446.9,2.86074]
[1725253611116,3.42825499,2447.3,2447.1,2.288]
[1725253611335,0.42825499,2447.3,2447.1,2.288]
[1725253611852,0.10921832,2447.2,2447.1,2.288]
[1725253612052,0.42825499,2447.3,2447.1,2.288]
[1725253612532,0.10921832,2447.2,2447.1,2.288]
[1725253612731,3.42825499,2447.3,2447.1,2.288]
[1725253612933,0.10928416,2447.2,2447.1,2.288]
[1725253613117,3.42825499,2447.3,2447.1,2.288]
[1725253613312,2.96971459,2447.2,2447.1,2.288]
[1725253613755,2.86056,2447.1,2446.6,2.3237]
[1725253613958,2.86073,2447.0,2446.6,2.3237]
[1725253614158,2.96988738,2447.0,2446.6,2.3237]
[1725253614468,0.10915738,2447.0,2446.6,2.3237]
[1725253615013,2.96983738,2447.0,2446.6,2.3237]
[1725253615214,0.10915738,2447.0,2446.6,2.3237]
[1725253619018,2.96981738,2447.0,2446.6,2.3237]
[1725253619655,2.86077,2446.9,2446.6,2.3237]
[1725253619956,5.83078883,2446.9,2446.6,2.3237]
[1725253620523,2.96994883,2446.9,2446.6,2.3237]
[1725253620717,5.83077883,2446.9,2446.6,2.3237]
[1725253621865,2.96994883,2446.9,2446.6,2.3237]
[1725253623260,0.10917883,2446.9,2446.6,2.3237]
[1725253623558,3.0,2447.0,2446.6,2.3237]
[1725253623933,0.10885446,2446.9,2446.6,2.3237]
[1725253624127,2.96963446,2446.9,2446.6,2.3237]
[1725253631047,5.83047446,2446.9,2446.6,2.3237]
[1725253631370,2.86087,2446.8,2446.6,2.3237]
[1725253631529,2.86099,2446.7,2446.6,2.3237]
[1725253631729,2.9698159,2446.7,2446.6,2.3237]
[1725253632879,2.86158,2446.2,2446.1,2.3667]
[1725253633087,2.86158,2446.2,2445.9,2.3667]
[1725253633088,7.07794287,2446.2,2445.9,2.3667]
[1725253633297,7.18636598,2446.2,2445.9,2.3667]
[1725253633655,2.8617,2446.1,2445.9,2.3667]
[1725253633909,0.10807745,2446.0,2445.9,2.3667]
[1725253634205,9.93961287,2446.2,2445.9,2.3667]
[1725253634382,0.10807745,2446.0,2445.9,2.3667]
[1725253634557,5.86173,2446.1,2445.9,2.3667]
[1725253634759,2.96988745,2446.0,2445.9,2.3667]
[1725253635111,2.86194,2445.9,2445.7,2.3667]
[1725253635462,0.10804403,2445.8,2445.7,2.3667]
[1725253639359,2.97008403,2445.8,2445.7,2.3667]
[1725253640327,2.97008403,2445.8,2445.4,2.46]
[1725253640675,2.8624,2445.5,2445.4,2.46]
[1725253640923,2.86229,2445.6,2445.4,2.46]
[1725253641083,0.10759177,2445.5,2445.4,2.46]
[1725253642924,2.97002177,2445.5,2445.3,7.44]
[1725253643279,2.97002177,2445.5,2445.2,2.4508]
[1725253643280,2.86252,2445.4,2445.2,2.4508]
[1725253643476,2.86263,2445.3,2445.0,2.4508]
[1725253643675,0.10737438,2445.2,2445.0,2.4508]
[1725253643893,5.86263,2445.3,2445.0,2.4508]
[1725253644091,0.10732633,2445.1,2445.0,2.4508]
[1725253644289,5.86263,2445.3,2445.0,2.4508]
[1725253644497,0.10646635,2445.2,2445.0,2.4508]
[1725253644717,5.86263,2445.3,2445.0,2.4508]
[1725253644926,0.10646635,2445.2,2445.0,2.4508]
[1725253645230,3.0,2445.3,2445.0,2.4508]
[1725253645684,0.10648889,2445.2,2445.0,2.4508]
[1725253646027,3.0,2445.3,2445.0,2.4508]
[1725253646229,0.10644084,2445.1,2445.0,2.4508]
[1725253646383,3.0,2445.3,2445.0,2.4508]
[1725253647022,0.10648889,2445.2,2445.0,2.4508]
[1725253647528,0.10633824,2445.1,2445.0,2.4508]
[1725253647826,3.0,2445.3,2445.0,2.4508]
[1725253648142,4.47808554,2448.9,2445.0,2.4508]
[1725253648143,3.44424859,2446.6,2445.6,2.3267]
[1725253648419,3.28959904,2446.5,2446.0,2.3267]
[1725253648631,0.42829904,2446.5,2446.0,2.3267]
[1725253648850,3.61848694,2446.5,2446.0,2.3267]
[1725253649183,0.42829904,2446.5,2446.1,2.94344018]
[1725253649625,0.42829904,2446.5,2446.1,2.86168]
[1725253650483,3.42829904,2446.5,2446.1,2.86168]
[1725253651814,3.42829904,2446.5,2446.1,2.94343183]
[1725253652014,0.42829904,2446.5,2446.1,3.75663101]
[1725253652819,2.86145,2446.4,2446.0,2.3267]
[1725253653132,3.0,2446.3,2446.0,2.3267]
[1725253653427,2.86183,2446.0,2445.6,2.2945]
[1725253653797,2.86212,2445.8,2445.1,10.30278]
[1725253654036,2.86212,2445.8,2445.2,5.14691]
[1725253654037,5.72425,2445.8,2445.2,5.14691]
[1725253654321,2.86216,2445.7,2445.2,2.2842]
[1725253654824,2.8623,2445.6,2445.2,2.2842]
[1725253655230,2.86241,2445.5,2445.2,2.2842]
[1725253655392,2.86252,2445.4,2445.1,7.44]
[1725253655590,2.8627,2445.3,2445.1,7.44]
[1725253655818,2.86275,2445.2,2444.9,2.2842]
[1725253656023,3.44093054,2445.4,2444.9,2.2842]
[1725253656224,3.0,2445.3,2444.9,2.2842]
[1725253656835,0.09576767,2445.2,2444.9,5.14728]
[1725253657047,0.09576767,2445.2,2444.9,2.2842]
[1725253657186,6.30771277,2445.2,2444.6,9.7203]
[1725253657390,0.09521393,2445.1,2444.6,9.7203]
[1725253659105,2.86305,2445.0,2444.6,9.7203]
[1725253659291,0.09453903,2444.9,2444.6,9.7203]
[1725253660805,2.8631,2444.9,2444.6,7.44]
[1725253661115,0.09423444,2444.8,2444.6,7.44]
[1725253661317,0.09346272,2444.8,2444.6,7.44]
[1725253663131,0.09346272,2444.8,2444.1,2.86398]
[1725253663132,0.09346272,2444.8,2444.7,8.20306]
[1725253663290,2.86235,2445.6,2444.9,2.863]
[1725253663490,0.09029969,2445.5,2444.9,2.863]
[1725253663721,0.09029969,2445.5,2445.0,2.8629]
[1725253664109,2.95273969,2445.5,2444.9,3.45194]
[1725253664312,2.95273969,2445.5,2444.9,2.863]
[1725253664818,3.0,2445.4,2444.9,5.72603]
[1725253665225,0.0837938,2445.3,2444.9,5.72603]
[1725253665532,0.0837938,2445.3,2445.0,2.94473987]
[1725253665840,3.0,2445.5,2445.1,2.4285]
[1725253666463,0.08412034,2445.4,2445.1,2.4285]
[1725253668733,0.08412034,2445.4,2445.1,5.29133]
[1725253669127,0.42825149,2445.6,2445.1,5.29133]
[1725253669436,0.08410706,2445.5,2445.1,5.29133]
[1725253674020,0.08410706,2445.5,2445.2,2.86274]
[1725253674775,0.08410706,2445.5,2445.3,2.2748]
[1725253674973,0.42821467,2445.9,2445.4,2.86251]
[1725253675260,0.42821467,2445.9,2445.5,2.86232]
[1725253678884,0.42821467,2445.9,2445.4,3.38441911]
[1725253680538,0.42821467,2445.9,2445.4,6.24692911]
[1725253680737,0.42821467,2445.9,2445.4,3.38434911]
[1725253681383,3.29015467,2445.9,2445.4,2.86244]
[1725253681557,3.0,2445.8,2445.4,2.86244]
[1725253684352,2.86218,2445.7,2445.3,2.2748]
[1725253684552,4.02444747,2445.7,2445.3,2.2748]
[1725253685257,2.86218,2445.7,2445.3,2.2748]
[1725253686590,0.084424,2445.6,2445.3,2.2748]
[1725253687807,2.946764,2445.6,2445.2,7.44]
[1725253687975,0.084424,2445.6,2445.2,7.44]
[1725253688169,5.86208,2445.8,2445.2,7.44]
[1725253688368,2.8626,2445.4,2445.2,7.44]
[1725253688788,0.08417548,2445.3,2445.2,7.44]
[1725253689879,0.08386713,2445.3,2445.2,7.44]
[1725253690911,0.08386713,2445.3,2445.2,9.7882]
[1725253691073,3.42824466,2445.6,2445.2,9.7882]
[1725253691273,0.08399262,2445.5,2445.2,9.7882]
[1725253692836,0.08399262,2445.5,2445.2,2.3482]
[1725253697012,2.94642262,2445.5,2445.2,2.3482]
[1725253697215,3.0,2445.4,2445.2,2.3482]
[1725253697633,0.08391118,2445.3,2445.2,2.3482]
[1725253698849,3.0,2445.5,2445.2,2.3482]
[1725253699042,0.08391118,2445.3,2445.2,2.3482]
[1725253699556,3.0,2445.5,2445.2,2.3482]
[1725253699838,0.08395925,2445.4,2445.2,2.3482]
[1725253712370,0.08395925,2445.4,2445.3,5.72526]
[1725253712573,2.13858564,2446.1,2445.6,2.2642]
[1725253712892,0.42821738,2445.9,2445.6,2.2642]
[1725253713038,0.42821738,2445.9,2445.6,5.12647]
[1725253713239,0.08125364,2445.8,2445.6,5.12647]
[1725253718157,0.08125364,2445.8,2445.7,2.86216]
[1725253721413,0.08125364,2445.8,2445.6,5.12646]
[1725253721715,0.08125364,2445.8,2445.6,5.7608641]
[1725253722216,0.08125364,2445.8,2445.6,8.6230741]
[1725253722524,0.08125364,2445.8,2445.6,5.7608141]
[1725253722819,0.08125364,2445.8,2445.6,8.6230241]
[1725253723433,0.08125364,2445.8,2445.7,2.86216]
[1725253724100,0.08125364,2445.8,2445.6,8.6230241]
[1725253726075,0.08125364,2445.8,2445.7,2.86216]
[1725253726278,0.08125364,2445.8,2445.7,3.49324936]
[1725253726542,3.0,2446.2,2445.8,2.3272]
[1725253727245,3.0,2446.2,2445.8,5.18923]
[1725253728705,3.42778175,2446.3,2445.8,5.18923]
[1725253728907,3.42778175,2446.3,2445.8,8.05126]
[1725253729316,3.42778175,2446.3,2445.8,5.18923]
[1725253729823,3.42778175,2446.3,2445.9,2.86192]
[1725253730948,3.42778175,2446.3,2445.8,5.8235841]
[1725253731148,3.42778175,2446.3,2445.8,5.18918]
[1725253731551,0.08235174,2446.2,2445.8,5.18918]
[1725253731719,3.42778175,2446.3,2445.8,5.18918]
[1725253731915,0.08235174,2446.2,2445.8,5.18918]
[1725253732148,6.28924175,2446.3,2445.8,5.18918]
[1725253732321,0.08235174,2446.2,2445.8,5.18918]
[1725253732656,3.42778175,2446.3,2445.8,5.18918]
[1725253732848,0.08230371,2446.1,2445.8,5.18918]
[1725253733158,0.08220558,2446.0,2445.8,8.05115]
[1725253733363,3.42778175,2446.3,2445.8,8.05115]
[1725253733667,0.08230165,2446.2,2445.8,8.05115]
[1725253734070,3.42778175,2446.3,2446.1,2.86165]
[1725253734325,0.42778175,2446.3,2446.2,5.27158]
[1725253734475,3.0,2446.7,2446.2,5.92867169]
[1725253734684,3.42775987,2446.7,2446.2,6.01042283]
[1725253734979,3.42775987,2446.7,2446.3,2.86146]
[1725253735294,0.42775987,2446.7,2446.4,2.3642]
[1725253735885,0.42775987,2446.7,2446.4,5.22552]
[1725253736380,0.42775987,2446.7,2446.4,5.83392177]
[1725253739548,0.42775987,2446.7,2446.4,2.97260177]
[1725253740349,0.42775987,2446.7,2446.5,2.3325454]
[1725253740598,0.0825957,2446.6,2446.5,5.11195]
[1725253740756,0.0825957,2446.6,2446.5,5.76904169]
[1725253742154,0.0825957,2446.6,2446.5,2.90789169]
[1725253743755,0.0825957,2446.6,2446.5,5.76912169]
[1725253744297,0.42817267,2447.0,2446.5,5.76912169]
[1725253744652,0.08284713,2446.9,2446.5,5.76912169]
[1725253745053,0.08284713,2446.9,2446.6,0.57691217]
[1725253745351,0.08284713,2446.9,2446.6,5.76521217]
[1725253745662,0.08284713,2446.9,2446.8,2.86087]
[1725253745871,0.08284713,2446.9,2446.8,2.94260016]
[1725253746378,0.08284713,2446.9,2446.8,5.26980016]
[1725253746586,3.4281673,2447.3,2446.8,5.26980016]
[1725253746787,0.08319628,2447.2,2446.8,2.3272]
[1725253746999,2.86053,2447.1,2446.8,2.3272]
[1725253747166,2.94397494,2447.0,2446.5,5.18831]
[1725253748272,2.86076,2446.9,2446.5,2.3272]
[1725253748684,0.08331065,2446.8,2446.5,2.3272]
[1725253751741,2.86108,2446.7,2446.5,2.3272]
[1725253752107,0.08321464,2446.6,2446.5,2.3272]
[1725253755465,8.72191,2446.8,2446.5,2.3272]
[1725253755767,0.08326604,2446.6,2446.5,2.3272]
[1725253755950,8.72191,2446.8,2446.5,2.3272]
[1725253756153,7.1013591,2446.8,2446.5,2.3272]
[1725253756353,0.08331404,2446.7,2446.5,2.3272]
[1725253756681,7.1013591,2446.8,2446.5,2.3272]
[1725253756984,0.08365549,2446.6,2446.5,2.3272]
[1725253757119,7.1013591,2446.8,2446.5,2.3272]
[1725253757320,0.08365549,2446.6,2446.5,2.3272]
[1725253757722,7.1013591,2446.8,2446.5,2.3272]
[1725253758279,0.0837035,2446.7,2446.5,2.3272]
[1725253758691,5.86095,2446.8,2446.5,2.3272]
[1725253758836,3.0,2446.8,2446.5,2.3272]
[1725253759032,0.08340052,2446.7,2446.5,2.3272]
[1725253759281,3.0,2446.9,2446.5,2.3272]
[1725253759576,0.08335251,2446.6,2446.5,2.3272]
[1725253759775,3.0,2446.9,2446.5,2.3272]
[1725253760074,5.86077,2446.9,2446.5,2.3272]
[1725253760441,0.08344853,2446.8,2446.5,2.3272]
[1725253763156,0.08344853,2446.8,2446.6,0.08174508]
[1725253763355,0.08344853,2446.8,2446.7,5.32189]
[1725253763584,0.08344853,2446.8,2446.7,5.40362322]
[1725253763758,0.42818071,2447.0,2446.8,2.86087]
[1725253766968,0.42818071,2447.0,2446.9,2.4527]
[1725253774311,0.42818071,2447.0,2446.9,2.9922304]
[1725253776266,0.42818071,2447.0,2446.9,2.4527]
[1725253776809,0.51196499,2447.0,2446.9,2.4527]
[1725253777169,0.08378428,2447.0,2446.9,8.17422]
[1725253777533,5.11589,2447.4,2446.9,2.4527]
[1725253777826,0.08405161,2447.0,2446.9,2.4527]
[1725253777971,5.11589,2447.4,2446.9,2.4527]
[1725253778172,0.08408098,2447.0,2446.9,2.4527]
[1725253778404,5.11589,2447.4,2446.9,2.4527]
[1725253778405,2.86041,2447.2,2446.9,2.4527]
[1725253778610,0.08408098,2447.0,2446.7,2.4836]
[1725253778765,2.86072,2447.0,2446.4,2.4836]
[1725253778968,0.08413579,2446.9,2446.4,2.4836]
[1725253779448,2.86089,2446.8,2446.4,2.4836]
[1725253779606,4.8402486,2446.8,2446.4,2.4836]
[1725253779777,0.08430523,2446.7,2446.2,2.4579]
[1725253780189,0.08430523,2446.7,2446.2,5.31946]
[1725253780506,0.08430523,2446.7,2446.2,2.4579]
[1725253781097,2.94530523,2446.7,2446.2,2.4579]
[1725253781295,3.31600251,2446.7,2446.2,2.4579]
[1725253782975,0.08430523,2446.7,2446.2,2.4579]
[1725253783201,5.94531523,2446.7,2446.2,2.4579]
[1725253787951,2.86112,2446.6,2446.2,2.4579]
[1725253788337,0.08324993,2446.5,2446.2,2.4579]
[1725253788852,2.86143,2446.4,2446.0,9.8381]
[1725253789020,0.08308778,2446.3,2446.0,9.8381]
[1725253790416,0.08308778,2446.3,2446.1,2.86167]
[1725253790766,3.0,2446.5,2446.2,2.2576]
[1725253790914,2.86094,2446.8,2446.2,5.1191]
[1725253790915,3.0,2446.7,2446.2,5.1191]
[1725253791954,0.08290694,2446.6,2446.2,5.1191]
[1725253792766,0.08290694,2446.6,2446.2,5.20084966]
[1725253799450,0.08290694,2446.6,2446.4,2.2784]
[1725253799770,2.86076,2446.9,2446.4,2.2784]
[1725253799976,0.0827861,2446.5,2446.4,2.2784]
[1725253800219,2.86076,2446.9,2446.4,2.9141371]
[1725253800381,2.86072,2447.0,2446.4,5.7754571]
[1725253800581,3.0,2446.9,2446.4,2.9141371]
[1725253800923,3.0830149,2446.9,2446.4,2.9141371]
[1725253801715,3.0830149,2446.9,2446.5,3.01065636]
[1725253801894,3.0830149,2446.9,2446.6,2.3809]
[1725253803839,0.0830149,2446.9,2446.7,2.8609]
[1725253803998,0.0830149,2446.9,2446.8,5.49753422]
[1725253804198,3.0,2447.3,2446.8,5.49753422]
[1725253804393,0.08322057,2446.9,2446.8,5.49753422]
[1725253804646,3.0,2447.3,2446.8,5.49753422]
[1725253804815,3.0,2447.3,2446.8,5.20327]
[1725253804816,0.08342625,2446.9,2446.8,5.20327]
[1725253805002,3.0,2447.3,2446.8,5.20327]
[1725253805239,0.08342625,2446.9,2446.8,5.20327]
[1725253805403,3.0,2447.3,2446.8,5.20327]
[1725253805606,0.08342625,2446.9,2446.8,5.20327]
[1725253805808,3.0,2447.3,2446.8,5.20327]
[1725253806008,0.08342625,2446.9,2446.8,5.20327]
[1725253806342,3.0,2447.3,2446.9,2.3424]
[1725253806798,0.08357025,2447.2,2446.9,2.3424]
[1725253807190,3.0,2447.3,2446.9,2.3424]
[1725253807405,0.08352225,2447.1,2446.9,2.3424]
[1725253807640,5.86029,2447.3,2446.9,2.3424]
[1725253807838,0.08347425,2447.0,2446.9,2.3424]
[1725253808139,0.08358442,2447.0,2446.9,2.3424]
[1725253808428,3.0,2447.1,2446.9,2.3424]
[1725253808629,0.08358442,2447.0,2446.9,2.3424]
[1725253809739,0.08358442,2447.0,2446.6,2.3058]
[1725253811096,0.08358442,2447.0,2446.6,5.1669]
[1725253811711,2.94422442,2447.0,2446.6,2.3058]
[1725253812040,0.08358442,2447.0,2446.6,2.3058]
[1725253812396,5.86053,2447.1,2446.6,2.3058]
[1725253812634,0.08361722,2446.9,2446.6,2.3058]
[1725253812809,0.08366522,2447.0,2446.6,2.3058]
[1725253813147,5.86053,2447.1,2446.6,2.3058]
[1725253813344,0.08361722,2446.9,2446.6,2.3058]
[1725253813514,0.08366522,2447.0,2446.6,2.3058]
[1725253814689,0.08366522,2447.0,2446.6,5.1669]
[1725253814977,0.08366522,2447.0,2446.7,5.30099]
[1725253815125,0.08366522,2447.0,2446.9,2.44]
[1725253815328,5.8603,2447.3,2446.9,2.44]
[1725253815575,0.08374652,2447.2,2446.9,2.44]
[1725253815989,3.0,2447.3,2446.9,2.44]
[1725253816137,0.08369852,2447.1,2446.9,2.44]
[1725253816477,0.08365052,2447.0,2446.9,2.44]
[1725253816774,5.86029,2447.3,2446.9,2.44]
[1725253816982,0.08365052,2447.0,2446.9,2.44]
[1725253817146,5.86029,2447.3,2446.9,2.44]
[1725253817353,0.08365052,2447.0,2446.9,2.44]
[1725253817549,5.86029,2447.3,2446.9,2.44]
[1725253817749,0.08365052,2447.0,2446.9,2.44]
[1725253817946,6.77517686,2447.3,2446.9,2.44]
[1725253818557,0.08374652,2447.2,2446.9,2.44]
[1725253818943,6.77517686,2447.3,2446.9,2.44]
[1725253819150,0.08374652,2447.2,2446.9,2.44]
[1725253819365,1.05566286,2447.2,2446.9,2.44]
[1725253819584,6.77517686,2447.3,2446.9,2.44]
[1725253819793,0.08377196,2447.1,2446.9,2.44]
[1725253820087,0.08372395,2447.0,2446.9,2.44]
[1725253820269,6.77517686,2447.3,2446.9,2.44]
[1725253820581,0.08381995,2447.2,2446.9,2.44]
[1725253821077,0.08377196,2447.1,2446.9,2.44]
[1725253821282,3.91488686,2447.3,2446.9,2.44]
[1725253821491,0.08381995,2447.2,2446.9,2.44]
[1725253821637,3.0,2447.3,2446.9,2.44]
[1725253821838,0.08381995,2447.2,2446.9,2.44]
[1725253822040,3.0,2447.3,2446.9,2.44]
[1725253822281,0.08381995,2447.2,2446.9,2.44]
[1725253822576,3.0,2447.3,2446.9,2.44]
[1725253822784,0.08377196,2447.1,2446.9,2.44]
[1725253822953,3.0,2447.3,2446.9,2.44]
[1725253823155,0.08372395,2447.0,2446.9,2.44]
[1725253823342,3.0,2447.3,2446.9,2.44]
[1725253823541,0.08381995,2447.2,2446.9,2.44]
[1725253823781,3.0,2447.3,2446.9,2.44]
[1725253823984,0.08377196,2447.1,2446.9,2.44]
[1725253824282,0.08372395,2447.0,2446.9,2.44]
[1725253824585,3.0,2447.3,2446.9,2.44]
[1725253824826,0.08372395,2447.0,2446.9,2.44]
[1725253824972,3.0,2447.3,2446.9,2.970098]
[1725253825175,0.08372395,2447.0,2446.9,2.44]
[1725253825397,3.0,2447.3,2446.9,2.44]
[1725253825607,0.08372395,2447.0,2446.9,2.44]
[1725253825786,3.0,2447.3,2446.9,2.44]
[1725253825989,0.08372395,2447.0,2446.9,5.30076]
[1725253826186,3.0,2447.5,2447.0,2.86061]
[1725253826413,3.0,2447.5,2447.1,2.4868]
[1725253828906,3.0,2447.5,2447.2,2.4868]
[1725253829224,3.0,2447.7,2447.4,2.4868]
[1725253829428,3.0,2447.9,2447.4,2.4868]
[1725253830129,3.0,2447.8,2447.4,2.4868]
[1725253830299,4.13956789,2447.9,2447.4,2.4868]
[1725253831186,3.0,2447.9,2447.4,2.4868]
[1725253834345,3.0,2447.9,2447.6,2.2604]
[1725253834550,3.0,2448.1,2447.7,2.2604]
[1725253834755,0.66437536,2448.2,2447.8,2.2604]
[1725253834911,5.71813,2448.4,2447.8,2.2604]
[1725253835416,2.85904,2448.4,2447.8,2.2604]
[1725253835618,2.85904,2448.4,2447.8,2.34209981]
[1725253835816,5.71813,2448.4,2447.8,2.2604]
[1725253836046,3.5960658,2448.4,2447.8,2.2604]
[1725253836245,3.0,2448.3,2447.9,2.2604]
[1725253836952,0.12769123,2448.2,2447.9,2.2604]
[1725253837123,3.0,2448.3,2447.9,2.2604]
[1725253837451,0.12769123,2448.2,2448.0,2.2604]
[1725253837823,3.0,2448.5,2448.0,2.2604]
[1725253838147,5.85891,2448.5,2448.0,2.2604]
[1725253838323,0.12806484,2448.4,2448.0,2.2604]
[1725253839048,2.98708484,2448.4,2448.0,2.2604]
[1725253839364,3.0,2448.3,2448.0,2.2604]
[1725253839775,0.12806771,2448.2,2448.0,2.2604]
[1725253840158,3.0,2448.3,2448.0,2.2604]
[1725253840490,0.12806771,2448.2,2448.0,2.2604]
[1725253840686,3.0,2448.3,2448.0,2.48644]
[1725253840872,3.0,2448.3,2448.0,3.70402101]
[1725253841081,0.12804571,2448.2,2448.1,2.448]
[1725253841245,3.0,2448.5,2448.1,2.448]
[1725253841446,0.12812353,2448.4,2448.3,2.448]
[1725253841988,2.85883,2448.6,2448.3,2.448]
[1725253842286,0.12812353,2448.4,2448.3,2.448]
[1725253842457,2.85883,2448.6,2448.3,2.448]
[1725253842657,0.12812353,2448.4,2448.3,2.448]
[1725253842861,2.85883,2448.6,2448.3,2.448]
[1725253843370,0.12828714,2448.5,2448.3,2.448]
[1725253843767,2.98720714,2448.5,2448.3,2.448]
[1725253844100,2.859,2448.4,2448.3,2.448]
[1725253844256,0.12828714,2448.5,2448.3,2.448]
[1725253844599,0.12829957,2448.4,2448.3,2.448]
[1725253854025,2.98729957,2448.4,2448.3,2.448]
[1725253854191,2.8592,2448.3,2447.9,2.366]
[1725253854399,2.8592,2448.3,2447.9,3.0103331]
[1725253854702,0.1285108,2448.2,2448.0,2.366]
[1725253854904,2.8592,2448.3,2448.0,2.366]
[1725253855104,0.1285108,2448.2,2448.0,2.366]
[1725253855307,2.8592,2448.3,2448.0,2.366]
[1725253855518,0.12858948,2448.2,2448.0,2.78879141]
[1725253855696,5.71809,2448.4,2448.0,2.78879141]
[1725253855898,0.12863573,2448.3,2448.0,2.78879141]
[1725253856195,2.98779573,2448.3,2448.0,2.78879141]
[1725253859849,1.21758101,2448.2,2447.4,2.366]
[1725253860059,2.85972,2447.8,2447.4,2.44770949]
[1725253860555,0.12821453,2447.7,2447.4,2.44770949]
[1725253860718,2.85972,2447.8,2447.4,2.44770949]
[1725253860927,2.85949,2448.0,2447.5,2.366]
[1725253860928,0.12823421,2447.7,2447.5,2.366]
[1725253861148,5.8593,2448.2,2447.6,2.44770164]
[1725253861313,0.12818448,2448.1,2447.6,2.44770164]
[1725253861514,0.12818448,2448.1,2447.8,2.379]
[1725253864057,2.85948,2448.0,2447.8,2.379]
[1725253864466,0.12812667,2447.9,2447.8,2.379]
[1725253866330,2.98771667,2447.9,2447.8,2.379]
[1725253866529,0.12812667,2447.9,2447.8,2.379]
[1725253868320,2.98771667,2447.9,2447.8,2.379]
[1725253869133,0.12812667,2447.9,2447.8,2.379]
[1725253870674,2.98771667,2447.9,2447.8,2.379]
[1725253870882,2.85974,2447.8,2447.5,2.3763]
[1725253871176,0.12808853,2447.7,2447.5,2.3763]
[1725253871395,5.71955,2447.8,2447.5,2.3763]
[1725253871396,2.85974,2447.8,2447.5,2.3763]
[1725253871550,2.98798227,2447.6,2447.5,2.3763]
[1725253873792,2.86006,2447.5,2447.2,2.2919]
[1725253873954,0.12773227,2447.4,2447.2,2.2919]
[1725253878010,2.86006,2447.5,2447.2,2.2919]
[1725253878407,0.12743855,2447.4,2447.2,2.2919]
[1725253878814,2.86006,2447.5,2447.2,2.2919]
[1725253879311,0.12743855,2447.4,2447.2,2.2919]
[1725253879516,2.86006,2447.5,2447.2,2.2919]
[1725253879687,0.12745323,2447.4,2447.2,2.2919]
[1725253879887,2.86006,2447.5,2447.2,2.52109]
[1725253880107,0.12745323,2447.4,2447.2,2.52109]
[1725253880311,2.86006,2447.5,2447.2,2.52109]
[1725253880537,0.12745323,2447.4,2447.2,2.52109]
[1725253880735,2.86006,2447.5,2447.2,2.52109]
[1725253880895,0.12745323,2447.4,2447.2,2.52109]
[1725253881113,2.86006,2447.5,2447.2,2.52109]
[1725253881318,0.12745323,2447.4,2447.2,2.52109]
[1725253881530,2.86006,2447.5,2447.2,2.52109]
[1725253881746,0.12738719,2447.4,2447.2,2.52109]
[1725253881958,5.71978,2447.7,2447.3,2.3252]
[1725253882257,0.12747971,2447.6,2447.3,2.863359]
[1725253883143,2.98742971,2447.6,2447.3,2.863359]
[1725253883639,0.12747971,2447.6,2447.5,2.3252]
[1725253883844,0.12747971,2447.6,2447.5,2.82334446]
[1725253884046,3.0,2447.8,2447.5,2.82334446]
[1725253884256,0.12750905,2447.6,2447.5,2.82334446]
[1725253884416,3.0,2447.9,2447.5,2.82334446]
[1725253884761,2.85931,2448.2,2447.6,2.3252]
[1725253884762,5.71862,2448.2,2447.6,2.3252]
[1725253884911,5.71862,2448.2,2447.7,2.3252]
[1725253884912,0.12752383,2448.1,2447.7,2.3252]
[1725253885110,0.12752383,2448.1,2447.7,4.07739101]